bitfinex-derivatives/quotes_BTCF0:USTF0_20251125
["timestamp","ask_amount","ask_price","bid_price","bid_amount"]
[1764088450542,0.0115743,87151.0,87146.0,0.18181205]
[1764088450543,0.17607,87147.0,87146.0,0.18181205]
[1764088450747,0.17607,87147.0,87146.0,0.00017205]
[1764088450748,0.3562813,87147.0,87146.0,0.00017205]
[1764088451151,0.3724226,87137.0,87130.0,0.29837945]
[1764088451554,0.3724226,87137.0,87130.0,0.18164]
[1764088451749,0.3725629,87137.0,87130.0,0.18164]
[1764088451950,0.3792734,87131.0,87130.0,0.18164]
[1764088452151,0.4818134,87131.0,87130.0,0.18164]
[1764088452856,0.4818134,87131.0,87122.0,0.00017215]
[1764088452857,0.3792745,87123.0,87122.0,0.00017215]
[1764088453453,0.0114837,87130.0,87129.0,0.3527]
[1764088453752,0.3609403,87137.0,87122.0,0.00017215]
[1764088453753,0.0001403,87137.0,87134.0,0.011483]
[1764088453954,0.0001403,87137.0,87136.0,0.3527]
[1764088454455,0.0001403,87137.0,87136.0,0.7135]
[1764088456558,0.0116229,87137.0,87136.0,0.7135]
[1764088456862,0.0001403,87137.0,87136.0,0.7135]
[1764088460553,0.3679303,87137.0,87136.0,0.3608]
[1764088460958,0.36779,87127.0,87126.0,0.54252]
[1764088461153,0.379274,87127.0,87126.0,0.54252]
[1764088461862,0.379274,87127.0,87126.0,0.18172]
[1764088463457,0.379274,87127.0,87126.0,0.35935]
[1764088464169,0.0114844,87124.0,87123.0,0.3527]
[1764088464660,0.0001403,87137.0,87126.0,0.3527]
[1764088464866,0.0114836,87130.0,87129.0,0.3527]
[1764088465063,0.3792736,87130.0,87129.0,0.3527]
[1764088465252,0.011484,87127.0,87126.0,0.3608]
[1764088465458,0.379274,87127.0,87126.0,0.7135]
[1764088465766,0.011484,87127.0,87126.0,0.7135]
[1764088466154,0.379274,87127.0,87126.0,0.7135]
[1764088468066,0.011484,87127.0,87126.0,0.7135]
[1764088469065,0.194404,87127.0,87126.0,0.7135]
[1764088469263,0.379274,87127.0,87126.0,0.7135]
[1764088469565,0.1945431,87137.0,87136.0,0.3527]
[1764088469766,0.0116231,87137.0,87136.0,0.3527]
[1764088471266,0.0001403,87137.0,87136.0,0.3527]
[1764088471462,8.6e-05,87137.0,87136.0,0.3527]
[1764088472568,8.6e-05,87137.0,87136.0,0.3641828]
[1764088472770,0.00016815,87139.0,87138.0,0.3527]
[1764088472958,0.0114811,87149.0,87148.0,0.3527]
[1764088473154,0.0114811,87149.0,87148.0,0.89522]
[1764088473456,0.3608,87157.0,87148.0,0.89522]
[1764088473659,0.0114806,87153.0,87152.0,0.3527]
[1764088473866,0.3792711,87149.0,87148.0,0.54252]
[1764088474060,0.1944011,87149.0,87148.0,0.89522]
[1764088474366,0.0114806,87153.0,87152.0,0.3527]
[1764088474575,0.00017215,87161.0,87160.0,0.45937]
[1764088474864,2.15e-06,87161.0,87160.0,1.00189]
[1764088475963,0.01148165,87161.0,87160.0,1.00189]
[1764088476365,2.15e-06,87161.0,87160.0,0.71078459]
[1764088477458,2.15e-06,87161.0,87160.0,0.64919]
[1764088478766,2.15e-06,87161.0,87160.0,0.71078459]
[1764088479075,2.15e-06,87161.0,87160.0,0.64919]
[1764088479763,0.011478,87172.0,87161.0,0.0114794]
[1764088479964,0.5551956,87190.0,87189.0,0.3527]
[1764088480164,0.1943956,87190.0,87189.0,0.3527]
[1764088481664,0.1953956,87190.0,87189.0,0.3527]
[1764088481864,0.1963956,87190.0,87189.0,0.3527]
[1764088483370,0.3812656,87190.0,87189.0,0.3527]
[1764088484473,0.1963956,87190.0,87189.0,0.3527]
[1764088485178,0.0134756,87190.0,87189.0,0.3527]
[1764088486771,0.002,87190.0,87189.0,0.3527]
[1764088488574,0.33384,87190.0,87189.0,0.3527]
[1764088490184,0.002,87190.0,87189.0,0.3527]
[1764088490384,0.33384,87190.0,87189.0,0.3527]
[1764088492390,0.16596,87190.0,87189.0,0.3527]
[1764088492577,0.33384,87190.0,87189.0,0.3527]
[1764088495383,0.002,87190.0,87189.0,0.3527]
[1764088496088,0.33384,87190.0,87189.0,0.3527]
[1764088498183,0.002,87190.0,87189.0,0.3527]
[1764088500394,0.30293204,87198.0,87197.0,0.31614]
[1764088500580,0.00017204,87198.0,87197.0,0.31614]
[1764088500785,0.0114728,87213.0,87197.0,0.31614]
[1764088500786,0.0114726,87213.0,87212.0,0.29073]
[1764088500983,0.0114723,87216.0,87215.0,0.14584]
[1764088501291,0.2940423,87216.0,87215.0,0.29073]
[1764088501491,0.1552423,87216.0,87215.0,0.29073]
[1764088501793,0.1552423,87216.0,87210.0,0.45273]
[1764088501794,0.28257,87219.0,87218.0,0.29073]
[1764088502091,0.0114718,87219.0,87218.0,0.29073]
[1764088502288,0.0114715,87222.0,87221.0,0.29073]
[1764088502489,0.2940415,87222.0,87221.0,0.29073]
[1764088502796,0.2940415,87222.0,87218.0,0.1816]
[1764088502797,0.3852318,87219.0,87218.0,0.2123301]
[1764088503494,0.3852318,87219.0,87218.0,0.5030601]
[1764088503795,0.3852318,87219.0,87218.0,0.47233]
[1764088504197,0.3852318,87219.0,87218.0,0.21231886]
[1764088504390,0.3852318,87219.0,87218.0,0.1816]
[1764088504591,0.3852318,87219.0,87218.0,0.21233726]
[1764088505197,0.3852318,87219.0,87218.0,0.1816]
[1764088505794,0.1552418,87219.0,87218.0,0.47233]
[1764088506096,0.00017204,87224.0,87223.0,0.29073]
[1764088506302,0.2940383,87246.0,87245.0,0.29073]
[1764088506499,0.0114699,87234.0,87233.0,0.83309]
[1764088506901,0.0114695,87237.0,87236.0,0.29073]
[1764088507094,0.0114692,87239.0,87236.0,0.32141564]
[1764088507300,0.1552392,87239.0,87238.0,0.29073]
[1764088507492,0.2940392,87239.0,87238.0,0.29073]
[1764088509295,0.28257,87239.0,87238.0,0.29073]
[1764088509697,0.2940392,87239.0,87238.0,0.29073]
[1764088509999,0.28257,87239.0,87238.0,0.29073]
[1764088511199,0.1552387,87243.0,87242.0,0.29719]
[1764088511502,0.3002787,87243.0,87242.0,0.65799]
[1764088512200,0.3012199,87234.0,87233.0,0.84153]
[1764088512897,0.14471,87234.0,87233.0,0.84153]
[1764088513297,0.3925791,87246.0,87245.0,0.14687]
[1764088513498,0.3012192,87239.0,87238.0,0.29917]
[1764088513803,0.3012192,87239.0,87233.0,0.54236]
[1764088513804,0.3909191,87246.0,87245.0,0.29917]
[1764088514097,0.3909191,87246.0,87233.0,0.54236]
[1764088514098,0.28975,87234.0,87233.0,0.54236]
[1764088514300,0.28975,87234.0,87233.0,0.18156]
[1764088514490,0.0114696,87236.0,87229.0,0.00017193]
[1764088514491,0.3012204,87230.0,87229.0,0.00017193]
[1764088514695,0.3012204,87230.0,87198.0,0.04099254]
[1764088514696,0.3012222,87216.0,87205.0,0.3608]
[1764088515503,0.3012222,87216.0,87197.0,0.3608]
[1764088515504,0.3012246,87198.0,87197.0,0.3608]
[1764088516002,0.08953,87200.0,87190.0,0.18152]
[1764088516003,0.3012255,87191.0,87190.0,0.18152]
[1764088516400,0.26774586,87191.0,87190.0,0.18152]
[1764088516601,0.27922136,87191.0,87190.0,0.18152]
[1764088516903,0.28975,87190.0,87189.0,0.00017193]
[1764088518301,0.28975,87190.0,87189.0,0.29934193]
[1764088518501,0.28975,87190.0,87189.0,0.00017193]
[1764088518806,0.28975,87190.0,87189.0,0.29934193]
[1764088519406,0.28975,87190.0,87189.0,0.00017193]
[1764088519702,0.37928,87190.0,87189.0,0.00017193]
[1764088523309,0.28975,87190.0,87189.0,0.29934193]
[1764088523609,0.28975,87190.0,87189.0,0.00017193]
[1764088523610,0.37928,87190.0,87189.0,0.00017193]
[1764088524010,0.28975,87190.0,87189.0,0.14704193]
[1764088524412,0.14471,87194.0,87193.0,0.29917]
[1764088524911,0.3012241,87202.0,87201.0,0.29917]
[1764088525107,0.28975,87191.0,87190.0,0.14687]
[1764088525500,0.1561857,87190.0,87189.0,0.29934193]
[1764088525710,0.3012257,87190.0,87189.0,0.29934193]
[1764088525906,0.3012257,87190.0,87189.0,0.00017193]
[1764088525907,0.3907557,87190.0,87189.0,0.00017193]
[1764088527101,0.3012279,87173.0,87172.0,0.03068564]
[1764088527307,0.3012283,87170.0,87169.0,0.53835564]
[1764088528211,0.27366659,87170.0,87169.0,0.53834995]
[1764088528606,0.28992203,87178.0,87177.0,0.29917]
[1764088528802,0.14488203,87178.0,87177.0,0.29917]
[1764088529015,0.01164923,87178.0,87177.0,0.29917]
[1764088529402,0.00017203,87178.0,87177.0,0.29917]
[1764088530117,0.00017203,87178.0,87177.0,0.30017]
[1764088530511,0.00017203,87178.0,87177.0,0.33084995]
[1764088530705,0.00017203,87178.0,87177.0,0.32984995]
[1764088531415,0.0114762,87186.0,87185.0,0.29917]
[1764088531604,0.0114758,87189.0,87188.0,0.29917]
[1764088531912,0.3012258,87189.0,87188.0,0.29917]
[1764088532118,0.3012263,87185.0,87184.0,0.65997]
[1764088533904,0.3012263,87185.0,87184.0,0.50767]
[1764088534102,0.3012263,87185.0,87184.0,0.3608]
[1764088534317,0.3012271,87179.0,87177.0,0.03065296]
[1764088534518,0.3012271,87179.0,87176.0,0.36097203]
[1764088534519,0.28975,87177.0,87176.0,0.69079499]
[1764088535516,0.28975,87177.0,87176.0,0.66014203]
[1764088536120,0.0114771,87179.0,87178.0,0.29917]
[1764088536310,0.3608,87189.0,87178.0,0.29917]
[1764088536709,0.1561868,87181.0,87180.0,0.29917]
[1764088537218,0.28975,87177.0,87176.0,0.36197203]
[1764088537422,0.28975,87177.0,87176.0,0.66114203]
[1764088537735,0.28975,87177.0,87176.0,0.69178686]
[1764088538110,0.28975,87177.0,87176.0,0.53948686]
[1764088538309,0.28975,87177.0,87176.0,0.50784203]
[1764088538720,0.28975,87177.0,87176.0,0.66014203]
[1764088538913,0.28975,87177.0,87176.0,0.29934203]
[1764088539112,0.28975,87177.0,87176.0,0.00117203]
[1764088540312,0.28975,87177.0,87176.0,0.30034203]
[1764088540512,0.28975,87177.0,87176.0,0.14804203]
[1764088541117,0.28975,87177.0,87176.0,0.29183203]
[1764088541423,0.1538171,87179.0,87178.0,0.29165]
[1764088541624,0.3024871,87179.0,87178.0,0.29165]
[1764088542520,0.3024871,87179.0,87178.0,0.14786]
[1764088544420,0.3024873,87177.0,87176.0,0.00017203]
[1764088545316,0.3024873,87177.0,87165.0,0.00011933]
[1764088545317,0.3024887,87167.0,87166.0,0.06148453]
[1764088545610,0.29101,87166.0,87165.0,0.00011933]
[1764088546021,0.29101,87166.0,87165.0,0.29176933]
[1764088546221,0.3608,87171.0,87170.0,0.29165]
[1764088546421,0.1538175,87176.0,87175.0,0.29165]
[1764088546616,0.1538175,87176.0,87175.0,0.65245]
[1764088547117,0.3024875,87176.0,87175.0,0.65245]
[1764088547918,0.3024875,87176.0,87175.0,0.29165]
[1764088548220,0.3024885,87168.0,87167.0,0.20934453]
[1764088548518,0.28640366,87168.0,87167.0,0.29165]
[1764088548927,0.28640366,87168.0,87167.0,0.14786]
[1764088549622,0.28640366,87168.0,87167.0,0.14886]
[1764088549820,0.28640366,87168.0,87167.0,0.001]
[1764088550527,0.29101,87166.0,87165.0,0.00011933]
[1764088551622,0.29101,87166.0,87165.0,0.14897933]
[1764088552123,0.29101,87166.0,87165.0,0.00211933]
[1764088559130,0.65181,87166.0,87165.0,0.00211933]
[1764088559332,0.65181,87166.0,87162.0,2.03e-06]
[1764088559333,0.27274,87164.0,87162.0,2.03e-06]
[1764088559533,0.2589,87163.0,87162.0,2.03e-06]
[1764088559933,0.2703792,87163.0,87162.0,2.03e-06]
[1764088560534,0.4519792,87163.0,87162.0,3e-08]
[1764088560835,0.1304,87162.0,87161.0,0.12995]
[1764088561134,0.2703793,87162.0,87161.0,0.25584]
[1764088561336,0.2703793,87162.0,87161.0,0.12589]
[1764088561632,0.2703804,87154.0,87153.0,0.00017203]
[1764088561946,0.27049398,87154.0,87153.0,0.00017203]
[1764088562439,0.2703821,87141.0,87140.0,0.3608]
[1764088562636,0.24281102,87137.0,87136.0,0.12589]
[1764088562932,0.25429362,87137.0,87136.0,0.12589]
[1764088563233,0.25429362,87137.0,87136.0,0.25584]
[1764088563432,0.25429362,87137.0,87136.0,0.12589]
[1764088563639,0.2703833,87132.0,87131.0,0.25584]
[1764088564035,0.2589,87131.0,87130.0,0.3608]
[1764088564241,0.2589,87131.0,87130.0,0.12589]
[1764088564442,0.3608,87133.0,87128.0,0.00017214]
[1764088564443,0.33583,87129.0,87128.0,0.00017214]
[1764088564829,0.33583,87129.0,87128.0,4e-08]
[1764088566137,0.0114839,87128.0,87111.0,0.3608]
[1764088566339,0.2589,87110.0,87109.0,0.12597757]
[1764088566545,0.3608,87115.0,87114.0,0.25584]
[1764088566844,0.011486,87111.0,87110.0,0.33572]
[1764088567232,0.01159509,87115.0,87114.0,0.25584]
[1764088567630,0.27049509,87115.0,87114.0,0.12589]
[1764088567838,0.25900949,87115.0,87114.0,0.12589]
[1764088568044,0.25900949,87115.0,87114.0,0.25584]
[1764088568045,0.00010949,87115.0,87114.0,0.25584]
[1764088568934,0.01159499,87115.0,87114.0,0.25584]
[1764088569843,0.01159499,87115.0,87110.0,0.61664]
[1764088569844,0.270386,87111.0,87110.0,0.61664]
[1764088570040,0.139986,87111.0,87110.0,0.69652]
[1764088570644,0.270386,87111.0,87110.0,0.69652]
[1764088570843,0.270386,87111.0,87110.0,0.48669]
[1764088571133,0.270386,87111.0,87110.0,0.61736]
[1764088571334,0.270386,87111.0,87110.0,0.69563]
[1764088571941,0.139986,87111.0,87110.0,0.69563]
[1764088572539,0.271636,87111.0,87110.0,0.61736]
[1764088573351,0.00010949,87115.0,87114.0,0.2615]
[1764088574043,0.00017214,87119.0,87118.0,0.2615]
[1764088574439,0.26424214,87119.0,87118.0,0.2615]
[1764088574833,0.275556,87111.0,87110.0,0.3608]
[1764088575041,0.011486,87111.0,87110.0,0.70057]
[1764088575948,0.13242,87118.0,87110.0,0.43907]
[1764088576241,0.0114853,87117.0,87116.0,0.2615]
[1764088578047,0.2755553,87117.0,87116.0,0.2615]
[1764088578856,0.0114853,87117.0,87116.0,0.2615]
[1764088579149,0.2755553,87117.0,87116.0,0.2615]
[1764088579757,0.143906,87111.0,87110.0,0.70057]
[1764088580256,0.275556,87111.0,87110.0,0.70057]
[1764088580654,0.275556,87111.0,87110.0,0.13083]
[1764088581056,0.275556,87111.0,87110.0,0.2615]
[1764088581847,0.143906,87111.0,87110.0,0.2615]
[1764088582254,0.275556,87111.0,87110.0,0.2615]
[1764088582655,0.6363552,87117.0,87116.0,0.2615]
[1764088582859,0.0114852,87117.0,87116.0,0.13067]
[1764088583045,0.00017214,87119.0,87118.0,0.2615]
[1764088587351,0.00017214,87119.0,87118.0,0.3024393]
[1764088587554,0.26424214,87119.0,87118.0,0.1717693]
[1764088587761,0.26424214,87119.0,87118.0,0.2615]
[1764088587955,0.26424214,87119.0,87118.0,0.13083]
[1764088588563,0.2755551,87118.0,87117.0,0.0409393]
[1764088588959,0.2755551,87118.0,87117.0,0.3024393]
[1764088589360,0.0114851,87118.0,87117.0,0.2615]
[1764088590961,0.2755551,87118.0,87117.0,0.2615]
[1764088591158,0.1439051,87118.0,87117.0,0.2615]
[1764088591358,0.2755551,87118.0,87117.0,0.2615]
[1764088591566,0.1439051,87118.0,87117.0,0.2615]
[1764088591765,0.0114851,87118.0,87117.0,0.2615]
[1764088592261,0.0114851,87118.0,87117.0,0.32298453]
[1764088592462,0.0114851,87118.0,87117.0,0.2615]
[1764088593371,0.00017214,87119.0,87118.0,0.2615]
[1764088597285,0.01165714,87119.0,87118.0,0.2615]
[1764088597665,0.27572714,87119.0,87118.0,0.2615]
[1764088598179,0.3722829,87135.0,87134.0,0.2615]
[1764088598380,0.2755529,87135.0,87134.0,0.2615]
[1764088598561,0.0114829,87135.0,87134.0,0.2615]
[1764088598872,0.5047017,87144.0,87143.0,0.2615]
[1764088599072,0.6363517,87144.0,87143.0,0.2615]
[1764088599575,0.2755522,87140.0,87139.0,0.13083]
[1764088599869,0.2755522,87140.0,87139.0,0.2615]
[1764088600361,0.2755522,87140.0,87139.0,0.30265709]
[1764088600968,0.0134817,87144.0,87139.0,0.30265709]
[1764088601169,0.0114809,87151.0,87143.0,0.26108]
[1764088601477,0.0114809,87150.0,87147.0,0.32712]
[1764088602278,0.0114809,87150.0,87138.0,0.07827]
[1764088602279,0.1121022,87140.0,87139.0,0.25192]
[1764088602572,0.1121022,87140.0,87135.0,0.00017214]
[1764088602573,0.2657728,87136.0,87135.0,0.00017214]
[1764088603166,0.2657728,87136.0,87135.0,0.25209214]
[1764088603878,0.2657728,87136.0,87135.0,0.00017214]
[1764088604581,0.2667728,87136.0,87135.0,0.00017214]
[1764088605170,0.2677728,87136.0,87135.0,0.00017214]
[1764088607479,0.0114847,87121.0,87120.0,0.44979]
[1764088608083,0.2657747,87121.0,87120.0,0.12167]
[1764088609272,0.2657747,87121.0,87120.0,0.19687]
[1764088610366,0.2657758,87113.0,87112.0,0.25203603]
[1764088614579,0.23819389,87113.0,87112.0,0.29320071]
[1764088615083,0.24967969,87113.0,87112.0,0.29320071]
[1764088615671,0.24967969,87113.0,87112.0,0.04128071]
[1764088616381,0.24967969,87113.0,87112.0,0.12178603]
[1764088616980,0.24967969,87113.0,87112.0,0.32723603]
[1764088617576,0.24967969,87113.0,87112.0,0.25203603]
[1764088618182,0.24967969,87113.0,87112.0,0.32723603]
[1764088618782,0.24967969,87113.0,87112.0,0.00011603]
[1764088619185,0.260016,87111.0,87109.0,0.04125225]
[1764088619484,0.24853,87110.0,87109.0,8.757e-05]
[1764088619879,0.08600017,87110.0,87109.0,8.757e-05]
[1764088620292,0.011486,87111.0,87110.0,0.24778]
[1764088620580,0.011486,87111.0,87109.0,8.757e-05]
[1764088621178,0.011486,87111.0,87109.0,0.12858757]
[1764088621380,0.011486,87111.0,87109.0,0.24786757]
[1764088624681,0.011486,87111.0,87110.0,0.24778]
[1764088625188,0.012486,87111.0,87110.0,0.24778]
[1764088625892,0.013486,87111.0,87110.0,0.24778]
[1764088626687,0.011486,87111.0,87109.0,8.757e-05]
[1764088626985,0.012486,87111.0,87109.0,8.757e-05]
[1764088627376,0.012486,87111.0,87109.0,0.12858757]
[1764088627978,0.012486,87111.0,87104.0,0.31947]
[1764088627979,0.0114868,87105.0,87104.0,0.31947]
[1764088628181,0.24853,87095.0,87094.0,0.27865974]
[1764088628389,0.2600181,87095.0,87094.0,0.27865974]
[1764088628592,0.2600181,87095.0,87094.0,0.24778]
[1764088628990,0.0114886,87092.0,87091.0,0.03087974]
[1764088629192,0.2600196,87084.0,87083.0,0.04116468]
[1764088629393,0.2600196,87084.0,87074.0,0.3608]
[1764088629394,0.24853,87078.0,87077.0,0.04116468]
[1764088629595,0.2600205,87077.0,87076.0,0.1285]
[1764088629795,0.2600205,87077.0,87076.0,0.24778]
[1764088630487,0.1351305,87077.0,87076.0,0.24778]
[1764088630688,0.0114905,87077.0,87076.0,0.24778]
[1764088632294,0.0114902,87080.0,87079.0,0.12673]
[1764088632592,0.01161056,87084.0,87083.0,0.24934]
[1764088633094,0.00012096,87084.0,87083.0,0.24934]
[1764088634194,2.24e-06,87085.0,87084.0,0.2965896]
[1764088634396,0.4960262,87110.0,87109.0,0.24934]
[1764088634791,0.3722862,87110.0,87109.0,0.24934]
[1764088634989,0.0114862,87110.0,87109.0,0.24934]
[1764088636385,0.002,87110.0,87109.0,0.24934]
[1764088636589,0.0114858,87114.0,87113.0,0.24934]
[1764088638097,0.0124858,87114.0,87113.0,0.24934]
[1764088638799,0.0134858,87114.0,87113.0,0.24934]
[1764088639097,2.24e-06,87118.0,87117.0,0.2608252]
[1764088639485,0.3608,87129.0,87128.0,0.24934]
[1764088640696,0.3608,87129.0,87128.0,0.2608238]
[1764088640891,0.00017224,87137.0,87136.0,0.24934]
[1764088641297,0.24357224,87137.0,87136.0,0.24934]
[1764088641493,0.0114835,87131.0,87128.0,0.4018923]
[1764088641698,0.00017224,87137.0,87131.0,0.0114834]
[1764088641699,0.011483,87135.0,87131.0,0.0114834]
[1764088642000,0.011483,87135.0,87134.0,0.24934]
[1764088642387,0.00017224,87137.0,87136.0,0.24934]
[1764088642797,0.00017224,87137.0,87136.0,0.61014]
[1764088643697,0.3722809,87150.0,87149.0,0.24934]
[1764088644000,0.6156809,87150.0,87149.0,0.24934]
[1764088644903,0.2434,87142.0,87141.0,0.24951214]
[1764088645397,0.254882,87142.0,87141.0,0.24951214]
[1764088646995,0.0114805,87153.0,87149.0,0.24934]
[1764088647197,0.0114805,87153.0,87152.0,0.24934]
[1764088648203,0.2548805,87153.0,87152.0,0.12673]
[1764088648602,0.2548814,87146.0,87145.0,0.61014]
[1764088648793,0.2434,87146.0,87145.0,0.61014]
[1764088649190,0.1352209,87150.0,87149.0,0.24934]
[1764088649394,0.1352205,87153.0,87152.0,0.24934]
[1764088649807,0.2548805,87153.0,87152.0,0.24934]
[1764088651307,0.00017214,87158.0,87152.0,0.61014]
[1764088651496,0.3608,87177.0,87168.0,0.2608185]
[1764088651808,0.6042,87177.0,87176.0,0.24934]
[1764088652196,0.6042,87177.0,87165.0,0.06304]
[1764088652402,0.2548785,87169.0,87168.0,0.24934]
[1764088652603,0.2558785,87169.0,87168.0,0.24934]
[1764088652804,0.1362185,87169.0,87168.0,0.24934]
[1764088652996,0.001,87169.0,87168.0,0.24934]
[1764088653502,0.001,87169.0,87168.0,0.61014]
[1764088653904,0.00017214,87177.0,87176.0,0.24934]
[1764088654501,0.12391214,87177.0,87176.0,0.24934]
[1764088654698,0.2548784,87169.0,87168.0,0.61014]
[1764088654904,0.2434,87169.0,87168.0,0.3608]
[1764088655101,0.2548795,87161.0,87160.0,0.36097214]
[1764088655513,0.2548795,87161.0,87160.0,0.61031214]
[1764088656311,0.2434,87161.0,87160.0,0.61031214]
[1764088657097,0.2434,87161.0,87160.0,0.00017214]
[1764088657312,0.12374,87142.0,87141.0,0.24934]
[1764088657510,0.2548812,87149.0,87148.0,0.24934]
[1764088659211,0.2548806,87153.0,87152.0,0.24934]
[1764088659406,0.2434,87153.0,87152.0,0.24934]
[1764088660624,0.00017214,87157.0,87156.0,0.2608201]
[1764088661212,0.26694214,87157.0,87156.0,0.24934]
[1764088662324,0.26794214,87157.0,87156.0,0.24934]
[1764088662921,0.290141,87149.0,87148.0,0.6558]
[1764088663127,0.290141,87149.0,87148.0,0.295]
[1764088663628,0.290141,87149.0,87142.0,0.1196]
[1764088663629,0.2901418,87143.0,87142.0,0.1196]
[1764088663818,0.27866,87141.0,87140.0,0.14709214]
[1764088666219,0.27866,87141.0,87140.0,0.29517214]
[1764088667527,0.27866,87141.0,87140.0,0.00017214]
[1764088667826,0.27866,87141.0,87119.0,0.06162397]
[1764088667827,0.0114854,87116.0,87115.0,0.1891723]
[1764088668019,0.2901454,87116.0,87115.0,0.295]
[1764088668220,0.1471154,87116.0,87115.0,0.295]
[1764088668421,0.0114854,87116.0,87115.0,0.295]
[1764088668819,0.1471154,87116.0,87115.0,0.296]
[1764088669014,0.2901454,87116.0,87115.0,0.296]
[1764088669623,0.49643,87120.0,87115.0,0.001]
[1764088669824,0.5079149,87120.0,87119.0,0.295]
[1764088670026,0.7365949,87120.0,87119.0,0.295]
[1764088670324,0.2901454,87116.0,87115.0,0.296]
[1764088670627,0.2901454,87116.0,87115.0,0.297]
[1764088670828,0.2901454,87116.0,87115.0,0.296]
[1764088671728,0.2901454,87116.0,87115.0,0.297]
[1764088671921,0.27866,87116.0,87115.0,0.297]
[1764088672318,0.3608,87120.0,87119.0,0.295]
[1764088672725,0.00017214,87124.0,87123.0,0.295]
[1764088673327,0.00017214,87124.0,87123.0,0.6558]
[1764088673833,0.00017214,87124.0,87123.0,0.6568]
[1764088674527,0.00017214,87124.0,87123.0,0.6578]
[1764088674930,0.01165644,87124.0,87123.0,0.6578]
[1764088675624,0.29031644,87124.0,87123.0,0.297]
[1764088678636,0.14728644,87124.0,87123.0,0.297]
[1764088678838,0.01165644,87124.0,87123.0,0.297]
[1764088679235,0.00017214,87124.0,87123.0,0.6578]
[1764088681239,0.2586226,87137.0,87136.0,0.24039]
[1764088682032,0.05208055,87137.0,87136.0,0.24039]
[1764088682233,0.17454055,87137.0,87136.0,0.24039]
[1764088683837,0.2586234,87131.0,87130.0,0.31344]
[1764088684039,0.2586234,87131.0,87130.0,0.24039]
[1764088684240,0.24714,87129.0,87128.0,0.00017214]
[1764088684440,0.28296,87129.0,87128.0,0.00017214]
[1764088684631,0.24714,87129.0,87128.0,0.24056214]
[1764088684831,0.24714,87129.0,87128.0,0.12120214]
[1764088685032,0.24714,87129.0,87128.0,0.24056214]
[1764088686232,0.31877,87129.0,87128.0,0.12220214]
[1764088686537,0.31877,87129.0,87128.0,0.00117214]
[1764088686742,0.0114853,87117.0,87116.0,0.24039]
[1764088687742,0.2586253,87117.0,87116.0,0.24139]
[1764088688641,0.2586253,87117.0,87116.0,0.2528754]
[1764088688841,0.1339453,87117.0,87116.0,0.24239]
[1764088689643,0.2586253,87117.0,87116.0,0.24239]
[1764088689844,0.1339453,87117.0,87116.0,0.24239]
[1764088690235,0.1339453,87117.0,87116.0,0.27327321]
[1764088690434,0.0114853,87117.0,87116.0,0.27327321]
[1764088690838,0.00017214,87125.0,87124.0,0.24039]
[1764088691048,0.01165634,87125.0,87124.0,0.24039]
[1764088691944,0.01165634,87125.0,87124.0,0.24139]
[1764088692344,0.01165634,87125.0,87124.0,0.24239]
[1764088693941,0.01165634,87125.0,87124.0,0.27327219]
[1764088694448,0.01165634,87125.0,87124.0,0.24239]
[1764088697848,0.01165634,87125.0,87124.0,0.2538743]
[1764088698245,0.25954634,87125.0,87124.0,0.24239]
[1764088698641,0.62034634,87125.0,87124.0,0.002]
[1764088698841,0.62034634,87125.0,87124.0,0.03295494]
[1764088699347,0.62034634,87125.0,87124.0,0.14965494]
[1764088699545,0.62034634,87125.0,87124.0,0.1187]
[1764088701149,0.49343634,87125.0,87124.0,0.24174]
[1764088702146,0.62034634,87125.0,87124.0,0.24174]
[1764088702742,0.37245634,87125.0,87124.0,0.24174]
[1764088702949,0.01165634,87125.0,87124.0,0.24174]
[1764088703349,0.25954634,87125.0,87124.0,0.24174]
[1764088703750,0.01165634,87125.0,87124.0,0.2532244]
[1764088703950,0.01165634,87125.0,87124.0,0.2841859]
[1764088704255,0.01165634,87125.0,87124.0,0.24174]
[1764088704856,0.25954634,87125.0,87124.0,0.24174]
[1764088705358,0.62034634,87125.0,87124.0,0.002]
[1764088707356,0.24789,87113.0,87112.0,0.1505615]
[1764088707661,0.60869,87113.0,87112.0,0.1196]
[1764088708246,0.48178,87113.0,87112.0,0.43134]
[1764088708658,0.60869,87113.0,87112.0,0.43134]
[1764088709050,0.60969,87113.0,87112.0,0.43134]
[1764088709357,0.60969,87113.0,87112.0,0.35934]
[1764088709759,0.60969,87113.0,87112.0,0.23974]
[1764088709962,0.60969,87113.0,87112.0,0.31174]
[1764088710345,0.001,87113.0,87112.0,0.31174]
[1764088710657,0.36097214,87125.0,87114.0,0.23974]
[1764088710658,0.0114856,87115.0,87114.0,0.23974]
[1764088712957,0.2593756,87115.0,87114.0,0.23974]
[1764088714257,0.3310159,87112.0,87111.0,0.0410923]
[1764088714663,0.24789,87111.0,87110.0,0.0410923]
[1764088714863,0.2593762,87110.0,87109.0,0.2808323]
[1764088715862,0.2593762,87110.0,87109.0,0.23974]
[1764088716568,0.24789,87109.0,87108.0,0.00017214]
[1764088718171,0.24889,87109.0,87108.0,0.00017214]
[1764088718571,0.24889,87109.0,87108.0,0.23991214]
[1764088719165,0.24989,87109.0,87108.0,0.23991214]
[1764088719573,0.24889,87109.0,87108.0,0.23991214]
[1764088719871,0.24989,87109.0,87108.0,0.23991214]
[1764088720258,0.24989,87109.0,87108.0,0.11687214]
[1764088721469,0.24989,87109.0,87108.0,0.23991214]
[1764088722372,0.24889,87109.0,87108.0,0.27087859]
[1764088722767,0.24889,87109.0,87108.0,0.23991214]
[1764088722968,0.24789,87109.0,87108.0,0.23991214]
[1764088723661,0.24789,87109.0,87108.0,0.11687214]
[1764088724075,0.24989,87109.0,87108.0,0.11687214]
[1764088725077,0.24989,87109.0,87108.0,0.23823214]
[1764088726976,0.002,87109.0,87108.0,0.31363214]
[1764088727277,0.24806,87109.0,87108.0,0.34459859]
[1764088727868,0.12362,87109.0,87108.0,0.34459859]
[1764088728876,0.002,87109.0,87108.0,0.31363214]
[1764088729082,0.001,87109.0,87108.0,0.31363214]
[1764088729466,0.0114862,87110.0,87109.0,0.24738]
[1764088730182,0.0114862,87110.0,87109.0,0.28866446]
[1764088730681,0.4939053,87117.0,87116.0,0.24738]
[1764088730881,0.4939053,87117.0,87116.0,0.27832984]